bitfinex-derivatives/quotes_BTCF0:USTF0_20241020
["timestamp","ask_amount","ask_price","bid_price","bid_amount"]
[1729389429893,0.15441637,68208.0,68207.0,0.15496485]
[1729389433997,0.0309,68211.0,68207.0,0.37718227]
[1729389434209,0.073307,68209.0,68208.0,0.22221742]
[1729389434601,0.073307,68209.0,68208.0,0.44203807]
[1729389434913,0.073307,68209.0,68208.0,0.44202149]
[1729389437507,0.073307,68209.0,68205.0,0.0002]
[1729389437703,0.07331,68206.0,68205.0,0.0002]
[1729389437911,0.07351,68206.0,68205.0,0.0002]
[1729389439014,0.07351,68206.0,68205.0,0.22200508]
[1729389439209,1.11335,68206.0,68205.0,0.22200508]
[1729389439907,1.11335,68206.0,68205.0,0.10139022]
[1729389440203,1.11335,68206.0,68205.0,0.10168713]
[1729389441504,1.14926025,68206.0,68205.0,0.0002]
[1729389442011,1.11335,68206.0,68205.0,0.0002]
[1729389444205,0.67351,68206.0,68205.0,0.0002]
[1729389444602,0.69952184,68206.0,68205.0,0.0002]
[1729389447411,0.73543169,68206.0,68205.0,0.0002]
[1729389449620,0.69952184,68206.0,68205.0,0.0002]
[1729389450313,0.09952184,68206.0,68205.0,0.0002]
[1729389456520,0.13543143,68206.0,68205.0,0.0002]
[1729389456916,0.1804421,68206.0,68205.0,0.0002]
[1729389461024,0.18044473,68206.0,68205.0,0.0002]
[1729389464521,0.09952184,68206.0,68205.0,0.0002]
[1729389464929,0.09952184,68206.0,68205.0,0.07342032]
[1729389465432,0.09952184,68206.0,68205.0,0.17485989]
[1729389466425,0.09952184,68206.0,68205.0,0.10163957]
[1729389467527,0.09952184,68206.0,68205.0,0.18950395]
[1729389467725,0.09952184,68206.0,68205.0,0.10163957]
[1729389468124,0.09952184,68206.0,68205.0,0.18950395]
[1729389468725,0.09952184,68206.0,68205.0,0.08806438]
[1729389469032,0.09952184,68206.0,68205.0,0.18955405]
[1729389470622,0.09952184,68206.0,68205.0,0.18954739]
[1729389471622,0.1071328,68206.0,68197.0,0.10250845]
[1729389471835,0.0002,68198.0,68197.0,0.10250845]
[1729389472130,0.03611009,68198.0,68197.0,0.10250845]
[1729389472329,0.08112096,68198.0,68197.0,0.10250845]
[1729389473641,0.15443996,68198.0,68197.0,0.10250845]
[1729389474138,0.15443996,68198.0,68196.0,0.09952458]
[1729389474338,0.08112096,68197.0,68196.0,0.09952458]
[1729389475533,0.08112165,68197.0,68196.0,0.09952458]
[1729389478942,0.15444165,68197.0,68196.0,0.09952458]
[1729389479641,0.07352,68197.0,68196.0,0.46336694]
[1729389479839,0.0002,68198.0,68196.0,0.46336694]
[1729389480044,0.073519,68198.0,68197.0,0.46655042]
[1729389480348,0.073519,68198.0,68197.0,0.10270806]
[1729389480533,0.073519,68198.0,68197.0,0.46650188]
[1729389480738,0.073519,68198.0,68197.0,0.32570799]
[1729389482248,0.073519,68198.0,68197.0,0.46599028]
[1729389484049,0.073519,68198.0,68197.0,0.46512033]
[1729389484244,0.073519,68198.0,68197.0,0.32486112]
[1729389484852,0.073519,68198.0,68197.0,0.46515017]
[1729389485349,0.073519,68198.0,68197.0,0.32486112]
[1729389485756,0.073519,68198.0,68197.0,0.22215306]
[1729389488952,0.073519,68198.0,68197.0,0.22227976]
[1729389490549,0.434319,68198.0,68197.0,0.22227976]
[1729389493742,0.434319,68198.0,68197.0,0.22235349]
[1729389494847,0.073321,68196.0,68194.0,0.02639161]
[1729389495153,0.03611122,68195.0,68194.0,0.073323]
[1729389498554,0.0811218,68195.0,68194.0,0.073323]
[1729389499655,0.1544438,68195.0,68194.0,0.073323]
[1729389501747,0.02949643,68195.0,68194.0,0.4359175]
[1729389502753,0.02949643,68195.0,68194.0,0.29558776]
[1729389503757,0.02949643,68195.0,68194.0,0.29491124]
[1729389507956,0.02949643,68195.0,68194.0,0.29493361]
[1729389508463,0.02949643,68195.0,68194.0,0.19383103]
[1729389508762,0.02949643,68195.0,68194.0,0.29493162]
[1729389512661,0.02949643,68195.0,68194.0,0.43482502]
[1729389513457,0.02949643,68195.0,68194.0,0.5359184]
[1729389513763,0.02949643,68195.0,68194.0,0.43481781]
[1729389516879,0.02949643,68195.0,68194.0,0.073323]
[1729389517465,0.065407,68195.0,68194.0,0.073323]
[1729389523370,0.06609531,68195.0,68194.0,0.073323]
[1729389524763,0.02949643,68195.0,68194.0,0.43053922]
[1729389524963,0.02949643,68195.0,68194.0,0.53325111]
[1729389525375,0.02949643,68195.0,68194.0,0.53325565]
[1729389526770,0.02949643,68195.0,68194.0,0.43053922]
[1729389526969,0.02949643,68195.0,68194.0,0.53325565]
[1729389527269,0.02949643,68195.0,68194.0,0.43053922]
[1729389528374,0.02949643,68195.0,68194.0,0.43048391]
[1729389529367,0.0002,68198.0,68194.0,0.43048391]
[1729389529581,0.0002,68198.0,68196.0,0.1027155]
[1729389529877,0.073519,68198.0,68197.0,0.21893406]
[1729389531773,0.0821476,68198.0,68194.0,0.073323]
[1729389531977,0.0002,68195.0,68194.0,0.073323]
[1729389532370,0.0821476,68195.0,68194.0,0.073323]
[1729389538277,0.08215248,68195.0,68194.0,0.073323]
[1729389538779,0.0002,68195.0,68194.0,0.29181623]
[1729389538980,0.0002,68195.0,68194.0,0.39453173]
[1729389539879,0.0002,68195.0,68194.0,0.53246134]
[1729389540665,0.073522,68195.0,68194.0,0.29181623]
[1729389540877,0.073522,68195.0,68194.0,0.32120873]
[1729389541181,0.073522,68195.0,68194.0,0.35640905]
[1729389546778,0.1103711,68195.0,68193.0,0.38698389]
[1729389547082,0.0370491,68194.0,68193.0,0.38698389]
[1729389551586,0.03706872,68194.0,68193.0,0.38698389]
[1729389551778,0.073523,68194.0,68193.0,0.38698389]
[1729389553882,0.073523,68194.0,68193.0,0.60555533]
[1729389555890,0.0294981,68194.0,68193.0,0.74356267]
[1729389556391,0.0294981,68194.0,68193.0,0.74240685]
[1729389561893,0.0294981,68194.0,68193.0,0.38698389]
[1729389562082,0.11181346,68194.0,68193.0,0.38698389]
[1729389563791,0.11181443,68194.0,68193.0,0.38698389]
[1729389568895,0.0294981,68194.0,68193.0,0.38166233]
[1729389571304,0.0294981,68194.0,68193.0,0.38182487]
[1729389573391,0.0294981,68194.0,68193.0,0.24418625]
[1729389576187,0.0294981,68194.0,68193.0,0.24422343]
[1729389581105,0.0294981,68194.0,68193.0,0.24417192]
[1729389583111,0.0294981,68194.0,68193.0,0.38178707]
[1729389584104,0.0294981,68194.0,68193.0,0.02618389]
[1729389584299,0.06672662,68194.0,68192.0,0.0004]
[1729389584504,0.03742852,68193.0,68192.0,0.0004]
[1729389586392,0.0002,68193.0,68192.0,0.0004]
[1729389586904,0.03743554,68193.0,68192.0,0.02725998]
[1729389587119,0.03743554,68193.0,68192.0,0.0004]
[1729389591006,0.03744545,68193.0,68192.0,0.0004]
[1729389591806,0.0002,68193.0,68192.0,0.0004]
[1729389592009,0.0002,68193.0,68192.0,0.21842185]
[1729389595909,0.0002,68193.0,68192.0,0.09985538]
[1729389596102,0.0002,68193.0,68192.0,0.21840238]
[1729389596302,0.0002,68193.0,68192.0,0.45874098]
[1729389596703,0.0002,68193.0,68192.0,0.32110253]
[1729389596918,0.0002,68193.0,68192.0,0.45875074]
[1729389600604,0.0002,68193.0,68192.0,0.53181249]
[1729389600808,0.0002,68193.0,68192.0,0.42911234]
[1729389601210,0.0002,68195.0,68192.0,0.35578634]
[1729389601413,0.0002,68195.0,68193.0,0.35558634]
[1729389601606,0.0002,68195.0,68194.0,0.35558634]
[1729389602510,0.0002,68195.0,68194.0,0.42890934]
[1729389604526,0.0002,68195.0,68194.0,0.35558634]
[1729389607125,0.03739162,68195.0,68192.0,0.073525]
[1729389607323,0.0002,68193.0,68192.0,0.073525]
[1729389607511,0.03739162,68193.0,68192.0,0.073525]
[1729389613122,0.073313,68204.0,68192.0,0.21936247]
[1729389613423,0.04500822,68203.0,68199.0,0.434117]
[1729389613627,0.04500822,68202.0,68199.0,0.434117]
[1729389613824,0.073313,68204.0,68200.0,0.22014148]
[1729389614027,0.04500762,68203.0,68200.0,0.22014148]
[1729389614228,0.073313,68204.0,68201.0,0.21820038]
[1729389614428,0.073313,68204.0,68202.0,0.21820038]
[1729389614623,0.073313,68204.0,68203.0,0.21820038]
[1729389616523,0.105913,68204.0,68203.0,0.21820038]
[1729389618833,0.139113,68204.0,68203.0,0.21825199]
[1729389619327,0.139113,68204.0,68203.0,0.09956925]
[1729389622130,0.22109023,68204.0,68197.0,0.10271444]
[1729389622435,0.073519,68198.0,68197.0,0.10271444]
[1729389622623,0.15549623,68198.0,68197.0,0.10271444]
[1729389623934,0.15546234,68198.0,68197.0,0.10271444]
[1729389626331,0.15546234,68198.0,68195.0,0.02633692]
[1729389626530,0.0002,68196.0,68194.0,0.073323]
[1729389626731,0.08214334,68195.0,68194.0,0.073323]
[1729389627831,0.16130439,68195.0,68194.0,0.073323]
[1729389628040,0.24324773,68195.0,68194.0,0.073323]
[1729389628428,0.24331042,68195.0,68194.0,0.073323]
[1729389629237,0.16110439,68195.0,68194.0,0.54668381]
[1729389629834,0.16110439,68195.0,68194.0,0.90748381]
[1729389630244,0.16110439,68195.0,68194.0,0.93370033]
[1729389630741,0.16110439,68195.0,68194.0,0.57290033]
[1729389631041,0.16110439,68195.0,68194.0,0.93370033]
[1729389631836,0.16110439,68195.0,68194.0,0.57290033]
[1729389632031,0.16110439,68195.0,68194.0,0.93370033]
[1729389633337,0.16110439,68195.0,68194.0,0.93372141]
[1729389633640,0.16110439,68195.0,68194.0,0.57292141]
[1729389633839,0.16110439,68195.0,68194.0,0.93372141]
[1729389634738,0.16110439,68195.0,68194.0,0.57292141]
[1729389635044,0.16110439,68195.0,68194.0,0.93372141]
[1729389635542,0.16110439,68195.0,68194.0,0.57292141]
[1729389635934,0.16110439,68195.0,68194.0,0.93372141]
[1729389636436,0.16110439,68195.0,68194.0,0.81633998]
[1729389636641,0.0002,68196.0,68194.0,0.81633998]
[1729389636844,0.0002,68196.0,68195.0,0.83410271]
[1729389637341,0.0002,68196.0,68195.0,0.3608]
[1729389637544,0.0002,68196.0,68194.0,0.09953952]
[1729389637740,0.0002,68195.0,68194.0,0.09953952]
[1729389638041,0.0002,68195.0,68194.0,0.46033952]
[1729389644238,0.073519,68198.0,68194.0,0.97370628]
[1729389644448,0.073519,68198.0,68196.0,0.11735293]
[1729389644639,0.073519,68198.0,68197.0,0.35633295]
[1729389646039,0.073519,68198.0,68197.0,0.71713295]
[1729389647547,0.073519,68198.0,68197.0,0.57922653]
[1729389648047,0.073519,68198.0,68197.0,0.57922004]
[1729389651139,0.0002,68198.0,68197.0,0.57922004]
[1729389651340,0.0002,68198.0,68197.0,0.8727923]
[1729389652146,0.0002,68198.0,68197.0,0.75401818]
[1729389652752,0.0002,68198.0,68197.0,0.75393432]
[1729389654054,0.0002,68198.0,68197.0,0.84195449]
[1729389655056,0.0002,68198.0,68197.0,0.75393432]
[1729389659154,0.0002,68198.0,68197.0,0.65437226]
[1729389659460,0.08207112,68198.0,68197.0,0.65437226]
[1729389661261,0.08207404,68198.0,68197.0,0.65437226]
[1729389665963,0.08198511,68198.0,68197.0,0.65437226]
[1729389667162,0.08198511,68198.0,68197.0,1.01116845]
[1729389667163,0.0002,68198.0,68197.0,1.01116845]
[1729389667364,0.073315,68202.0,68197.0,1.01116845]
[1729389667561,0.073315,68202.0,68199.0,0.10269579]
[1729389667869,0.073315,68202.0,68197.0,0.65437226]
[1729389667870,0.073315,68202.0,68200.0,0.68073186]
[1729389668170,0.073315,68202.0,68201.0,0.32140071]
[1729389668663,0.073315,68202.0,68201.0,0.54269656]
[1729389668863,0.073315,68202.0,68201.0,0.32140071]
[1729389669264,0.073315,68202.0,68201.0,0.45938301]
[1729389669766,0.073315,68202.0,68201.0,0.32140071]
[1729389671974,0.073315,68202.0,68201.0,0.45939945]
[1729389672362,0.073315,68202.0,68201.0,0.32140071]
[1729389672863,0.073315,68202.0,68201.0,0.45939214]
[1729389673662,0.0326,68204.0,68203.0,0.073314]
[1729389673866,0.0323,68213.0,68211.0,0.073305]
[1729389674075,0.44273791,68215.0,68211.0,0.29200992]
[1729389674371,0.04720071,68212.0,68211.0,0.29345136]
[1729389674870,0.08465585,68212.0,68211.0,0.29345136]
[1729389675467,0.08245599,68212.0,68211.0,0.38313136]
[1729389676371,0.03745514,68212.0,68211.0,0.38313136]
[1729389678770,0.08245186,68212.0,68211.0,0.38313136]
[1729389678970,0.44273791,68215.0,68213.0,0.073303]
[1729389679173,0.03772433,68214.0,68213.0,0.073303]
[1729389679574,0.03772433,68214.0,68213.0,0.29374335]
[1729389680276,0.03772656,68214.0,68213.0,0.29374335]
[1729389681785,0.44273791,68215.0,68213.0,0.32058387]
[1729389681997,0.44197791,68215.0,68213.0,0.32058387]
[1729389684383,0.44197791,68215.0,68214.0,0.073302]
[1729389684893,0.44197791,68215.0,68214.0,0.29277947]
[1729389696691,0.44197791,68215.0,68214.0,0.35145291]
[1729389697495,0.52452389,68215.0,68214.0,0.29277947]
[1729389700587,0.52460331,68215.0,68214.0,0.29277947]
[1729389702789,0.68569638,68215.0,68214.0,0.29277947]
[1729389703185,0.52460331,68215.0,68214.0,0.29277947]
[1729389703382,0.57718115,68215.0,68214.0,0.29277947]
[1729389704292,0.44197791,68215.0,68214.0,0.39191821]
[1729389705197,0.44197791,68215.0,68214.0,0.47992838]
[1729389705696,0.44197791,68215.0,68214.0,0.39191821]
[1729389706086,0.44197791,68215.0,68214.0,0.47992838]
[1729389706287,0.44197791,68215.0,68214.0,0.39191821]
[1729389707187,0.44197791,68215.0,68214.0,1.11351821]
[1729389707696,0.44197791,68215.0,68214.0,1.20152838]
[1729389707895,0.44197791,68215.0,68214.0,1.11351821]
[1729389708393,0.44197791,68215.0,68214.0,1.2015014]
[1729389708594,0.44197791,68215.0,68214.0,1.11351821]
[1729389709495,0.44197791,68215.0,68214.0,1.11329189]
[1729389711099,0.44197791,68215.0,68214.0,1.20125888]
[1729389711398,0.44197791,68215.0,68214.0,1.20125315]
[1729389712394,0.52488179,68215.0,68214.0,1.01437947]
[1729389719211,0.52483352,68215.0,68214.0,1.10401947]
[1729389719403,0.44197791,68215.0,68214.0,1.20293708]
[1729389726002,0.44197791,68215.0,68214.0,1.29089834]
[1729389727610,0.52482754,68215.0,68214.0,1.10401947]
[1729389727908,0.57740378,68215.0,68214.0,1.10401947]
[1729389728206,0.68600555,68215.0,68214.0,1.10401947]
[1729389728410,0.57740378,68215.0,68214.0,1.10401947]
[1729389734524,0.44197791,68215.0,68214.0,1.20297368]
[1729389734714,0.44197791,68215.0,68214.0,1.29096618]
[1729389736916,0.44197791,68215.0,68214.0,1.12967168]
[1729389737817,0.44197791,68215.0,68214.0,0.76887168]
[1729389738225,0.44197791,68215.0,68214.0,0.67923168]
[1729389738416,0.44197791,68215.0,68214.0,0.76887168]
[1729389741023,0.44197791,68215.0,68214.0,0.67923168]
[1729389741324,0.44197791,68215.0,68214.0,0.76883168]
[1729389741823,0.51527891,68215.0,68214.0,0.76883168]
[1729389742035,0.51527891,68215.0,68214.0,0.7690201]
[1729389743024,0.073301,68215.0,68214.0,0.7690201]
[1729389743421,0.073301,68215.0,68214.0,0.84233673]
[1729389744021,0.073301,68215.0,68214.0,0.6794201]
[1729389744325,0.073301,68215.0,68214.0,0.75273001]
[1729389744525,0.073301,68215.0,68214.0,0.6535948]
[1729389744723,0.073301,68215.0,68214.0,0.58027747]
[1729389747319,0.073301,68215.0,68214.0,0.3608]
[1729389747922,1.113101,68215.0,68214.0,0.3608]
[1729389748323,1.113101,68215.0,68214.0,0.41944084]
[1729389749332,0.513101,68215.0,68214.0,0.3608]
[1729389749518,0.52220687,68215.0,68209.0,0.0004]
[1729389749725,0.16120254,68211.0,68209.0,0.0004]
[1729389750030,0.27610941,68210.0,68209.0,0.0004]
[1729389750427,0.11490687,68210.0,68209.0,0.0004]
[1729389751624,0.0325,68210.0,68209.0,0.0004]
[1729389751832,0.06872804,68210.0,68209.0,0.0004]
[1729389752025,0.11372869,68210.0,68209.0,0.0004]
[1729389753135,0.11372869,68210.0,68209.0,0.073707]
[1729389753331,0.11372869,68210.0,68209.0,0.29285499]
[1729389755240,0.27493123,68210.0,68209.0,0.29285499]
[1729389755542,0.11372869,68210.0,68209.0,0.29285499]
[1729389755737,0.22980966,68210.0,68209.0,0.29285499]
[1729389756042,0.27481031,68210.0,68209.0,0.29285499]
[1729389756241,0.11372869,68210.0,68209.0,0.29285499]
[1729389756743,0.0325,68210.0,68209.0,0.39287802]
[1729389760541,0.0002,68210.0,68209.0,0.39287802]
[1729389761547,0.0002,68210.0,68209.0,0.39282039]
[1729389762442,0.07548795,68226.0,68209.0,0.51188646]
[1729389762645,0.07548795,68226.0,68222.0,0.07326715]
[1729389762847,0.07548795,68226.0,68221.0,0.073293]
[1729389762848,0.07548795,68226.0,68223.0,0.07326715]
[1729389763060,0.07548795,68226.0,68224.0,0.07326715]
[1729389763649,0.07548795,68226.0,68224.0,0.14655815]
[1729389763847,0.07548795,68226.0,68225.0,0.07329]
[1729389764638,0.11234174,68226.0,68220.0,0.0002]
[1729389764836,0.08184605,68225.0,68223.0,0.073292]
[1729389765039,0.08184605,68224.0,68223.0,0.073292]
[1729389765245,0.03685379,68224.0,68223.0,0.073292]
[1729389765449,0.08184605,68224.0,68223.0,0.29237608]
[1729389766451,0.08122934,68224.0,68223.0,0.29237608]
[1729389766949,0.15452034,68224.0,68223.0,0.29237608]
[1729389769149,0.15452034,68224.0,68223.0,0.17098891]
[1729389769346,0.15452034,68224.0,68223.0,0.24428091]
[1729389769552,0.15452034,68224.0,68223.0,0.17098891]
[1729389771755,0.073291,68224.0,68223.0,0.17098891]
[1729389778565,0.073291,68224.0,68223.0,0.24428091]
[1729389781759,0.073291,68224.0,68223.0,0.17098891]
[1729389781960,0.073291,68224.0,68223.0,0.26058891]
[1729389783359,0.073291,68224.0,68223.0,0.17098891]
[1729389783557,0.0629,68225.0,68220.0,0.0002]
[1729389783877,0.073494,68221.0,68220.0,0.073495]
[1729389784260,0.073494,68221.0,68220.0,0.29417029]
[1729389786654,0.073494,68221.0,68220.0,0.17681672]
[1729389786655,0.15438315,68221.0,68220.0,0.17681672]
[1729389786859,0.15438315,68221.0,68220.0,0.01545556]
[1729389787461,0.39720636,68221.0,68220.0,0.08875056]
[1729389787768,0.15438315,68221.0,68220.0,0.08875056]
[1729389788072,0.20695732,68221.0,68220.0,0.08875056]
[1729389789470,0.20695722,68221.0,68220.0,0.08875056]
[1729389789770,0.39720626,68221.0,68220.0,0.08875056]
[1729389791663,0.20695722,68221.0,68220.0,0.08875056]
[1729389794667,0.073494,68221.0,68220.0,0.08875056]
[1729389801564,0.0002,68221.0,68220.0,0.08875056]
[1729389801767,0.08108895,68221.0,68219.0,0.3612]
[1729389801967,0.08108895,68220.0,68219.0,0.434497]
[1729389802377,0.08108895,68220.0,68219.0,0.6554202]
[1729389804278,0.08109012,68220.0,68219.0,0.6554202]
[1729389808870,0.13366416,68220.0,68219.0,0.6554202]
[1729389809873,0.0002,68220.0,68219.0,0.6554202]
[1729389810871,0.0002,68220.0,68219.0,0.2946202]
[1729389811468,0.0002,68220.0,68219.0,0.36788735]
[1729389812084,0.0002,68220.0,68219.0,0.2946202]
[1729389812281,0.0002,68220.0,68219.0,0.36788735]
[1729389812971,0.0002,68220.0,68219.0,0.47143856]
[1729389813682,0.0002,68220.0,68219.0,0.83223856]
[1729389814078,0.0002,68220.0,68219.0,0.83221408]
[1729389815569,0.0002,68220.0,68219.0,0.47141408]
[1729389815880,0.0002,68220.0,68219.0,0.83221408]
[1729389816285,0.0002,68220.0,68219.0,0.75894693]
[1729389816491,0.0002,68220.0,68219.0,0.83228182]
[1729389816675,0.0002,68220.0,68219.0,0.47148182]
[1729389816875,0.0002,68220.0,68219.0,0.01591043]
[1729389816876,0.13366094,68220.0,68219.0,0.01591043]
[1729389817092,0.13366094,68220.0,68219.0,0.37671043]
[1729389817476,0.13366094,68220.0,68219.0,0.45000743]
[1729389817881,0.32423376,68220.0,68219.0,0.45000743]
[1729389818583,0.32423376,68220.0,68219.0,0.08920743]
[1729389818774,0.32423376,68220.0,68219.0,0.45000743]
[1729389818979,0.27166053,68220.0,68219.0,0.45000743]
[1729389819275,0.08108771,68220.0,68219.0,0.45000743]
[1729389823787,0.0810894,68220.0,68219.0,0.45000743]
[1729389824386,0.13366263,68220.0,68219.0,0.45000743]
[1729389824788,0.0002,68220.0,68219.0,0.55434233]
[1729389825283,0.0002,68220.0,68219.0,0.67866977]
[1729389826397,0.0002,68220.0,68219.0,0.31786977]
[1729389826580,0.0002,68220.0,68219.0,0.67866977]
[1729389827286,0.0002,68220.0,68219.0,0.31786977]
[1729389827482,0.0002,68220.0,68219.0,0.67866977]
[1729389827674,0.0002,68220.0,68219.0,0.19354233]
[1729389827878,0.0002,68220.0,68219.0,0.55434233]
[1729389828389,0.0002,68220.0,68219.0,0.19354233]
[1729389828589,0.0002,68220.0,68219.0,0.55434233]
[1729389829089,0.0002,68220.0,68219.0,0.19354233]
[1729389829291,0.0002,68220.0,68219.0,0.55434233]
[1729389829791,0.0002,68220.0,68219.0,0.19354233]
[1729389829987,0.0002,68220.0,68219.0,0.55434233]
[1729389830182,0.0002,68220.0,68219.0,0.19354233]
[1729389830593,0.0002,68220.0,68219.0,0.55434233]
[1729389830794,0.0002,68220.0,68219.0,0.19354233]
[1729389831188,0.0002,68220.0,68219.0,0.55434233]
[1729389831393,0.0002,68220.0,68219.0,0.19354233]
[1729389831877,0.0002,68220.0,68219.0,0.45000743]
[1729389833193,0.0002,68220.0,68219.0,0.08920743]
[1729389833385,0.0002,68220.0,68219.0,0.45000743]
[1729389834495,0.0002,68220.0,68219.0,0.08920743]
[1729389834698,0.0002,68220.0,68219.0,0.45000743]
[1729389834993,0.0002,68220.0,68219.0,0.08920743]
[1729389835199,0.0002,68220.0,68219.0,0.45000743]
[1729389835586,0.0002,68220.0,68219.0,0.08920743]
[1729389835885,0.0002,68220.0,68219.0,0.45000743]
[1729389836086,0.0002,68220.0,68219.0,0.08920743]
[1729389836493,0.0002,68220.0,68219.0,0.45000743]
[1729389836695,0.0002,68220.0,68219.0,0.08920743]
[1729389836900,0.0002,68220.0,68219.0,0.45000743]
[1729389837398,0.0002,68220.0,68219.0,0.08920743]
[1729389837594,0.0002,68220.0,68219.0,0.45000743]
[1729389837897,0.0002,68220.0,68219.0,0.08920743]
[1729389838097,0.0002,68220.0,68219.0,0.45000743]
[1729389838286,0.0002,68220.0,68219.0,0.08920743]
[1729389838596,0.0002,68220.0,68219.0,0.45000743]
[1729389839489,0.0002,68220.0,68219.0,0.08920743]
[1729389839688,0.0002,68220.0,68219.0,0.45000743]
[1729389839991,0.08108839,68220.0,68219.0,0.17129532]
[1729389840200,0.05257367,68223.0,68220.0,0.073295]
[1729389840397,0.0525723,68230.0,68219.0,0.39210033]
[1729389840598,0.3608,68231.0,68230.0,0.073285]
[1729389841092,0.3608,68231.0,68230.0,0.29202876]
[1729389845388,0.40578651,68231.0,68230.0,0.29202876]
[1729389845588,0.04498651,68231.0,68230.0,0.29202876]
[1729389846897,0.0327,68234.0,68230.0,0.3360302]
[1729389847199,0.0327,68234.0,68232.0,0.065954]
[1729389847606,0.0327,68234.0,68233.0,0.21910672]
[1729389848094,0.0327,68234.0,68233.0,0.28505972]
[1729389848496,0.0327,68234.0,68233.0,0.065953]
[1729389848901,0.0327,68234.0,68233.0,0.28581451]
[1729389855102,0.11357773,68234.0,68233.0,0.08312903]
[1729389855606,0.11357773,68234.0,68233.0,0.14908203]
[1729389856601,0.11357725,68234.0,68233.0,0.14908203]
[1729389858499,0.47437725,68234.0,68233.0,0.14908203]
[1729389858700,0.526944,68234.0,68233.0,0.14908203]
[1729389862004,0.3935,68234.0,68233.0,0.14908203]
[1729389865695,0.0327,68234.0,68233.0,0.14908203]
[1729389867509,0.00219898,68235.0,68234.0,0.065952]
[1729389867696,0.00219898,68235.0,68234.0,0.10995344]
[1729389867898,0.00219898,68235.0,68234.0,0.28705011]
[1729389868214,0.00219898,68235.0,68234.0,0.34571637]
[1729389868414,0.00219898,68235.0,68234.0,0.28705011]
[1729389869204,0.00219898,68235.0,68234.0,0.34563529]
[1729389869405,0.00219898,68235.0,68234.0,0.28705011]
[1729389871908,0.00219898,68235.0,68234.0,0.34563763]
[1729389875609,0.3608,68240.0,68234.0,0.27968563]
[1729389875810,0.3608,68240.0,68237.0,0.04392679]
[1729389876217,0.3608,68240.0,68238.0,0.2210639]
[1729389876817,0.3608,68240.0,68237.0,0.2210639]
[1729389877017,0.13342902,68239.0,68235.0,0.03198073]
[1729389877320,0.3608,68240.0,68235.0,0.03198073]
[1729389877321,0.19035825,68237.0,68236.0,0.2866682]
[1729389877510,0.32378727,68237.0,68236.0,0.2866682]
[1729389878405,0.13342902,68237.0,68236.0,0.3762282]
[1729389879118,0.08086836,68237.0,68236.0,0.3762282]
[1729389879808,0.13342902,68237.0,68236.0,0.3762282]
[1729389881114,0.05256066,68237.0,68236.0,0.3762282]
[1729389881422,0.13342906,68237.0,68236.0,0.3762282]
[1729389884116,0.0808684,68237.0,68236.0,0.3762282]
[1729389885124,0.0002,68238.0,68237.0,0.065949]
[1729389885423,0.0002,68238.0,68237.0,0.10986112]
[1729389885725,0.0002,68238.0,68237.0,0.32976309]
[1729389888223,0.0002,68238.0,68237.0,0.28585097]
[1729389891036,0.0002,68238.0,68237.0,0.31245494]
[1729389892142,0.08106484,68238.0,68237.0,0.06098708]
[1729389892324,0.13362321,68238.0,68237.0,0.06098708]
[1729389893117,0.08106484,68238.0,68237.0,0.06098708]
[1729389893426,0.13362321,68238.0,68237.0,0.12693608]
[1729389896136,0.13362344,68238.0,68237.0,0.12693608]
[1729389896734,0.32398169,68238.0,68237.0,0.12693608]
[1729389897631,0.13362344,68238.0,68237.0,0.12693608]
[1729389899229,0.0002,68238.0,68237.0,0.12693608]
[1729389901333,0.0002,68238.0,68237.0,0.48773608]
[1729389907161,0.0002,68238.0,68237.0,0.3608]
[1729389907162,0.08106285,68238.0,68237.0,0.3608]
[1729389907329,0.08106285,68238.0,68237.0,0.73714101]
[1729389907936,0.08106285,68238.0,68237.0,0.76412281]
[1729389909334,0.0002,68238.0,68237.0,0.76412281]
[1729389909542,0.08106504,68238.0,68237.0,0.76412281]
[1729389912542,0.13362211,68238.0,68237.0,0.60280971]
[1729389914143,0.13362211,68238.0,68237.0,0.67614253]
[1729389914144,0.0002,68238.0,68237.0,0.67614253]
[1729389914938,0.0002,68238.0,68237.0,0.47665563]
[1729389915346,0.0002,68238.0,68237.0,0.5883282]
[1729389918751,0.0002,68238.0,68237.0,0.4987682]
[1729389919048,0.0002,68238.0,68237.0,0.5883282]
[1729389919550,0.0002,68238.0,68237.0,0.58832829]
[1729389921551,0.0002,68238.0,68237.0,0.51499547]
[1729389924240,0.0002,68238.0,68237.0,0.51499302]
[1729389927740,0.0002,68238.0,68237.0,0.58828829]
[1729389929247,0.08106416,68238.0,68237.0,0.47142281]
[1729389933555,0.08106416,68238.0,68237.0,0.40332281]
[1729389934460,0.08106464,68238.0,68237.0,0.40332281]
[1729389934754,0.13362256,68238.0,68237.0,0.2420104]
[1729389935061,0.32419174,68238.0,68237.0,0.2420104]
[1729389935448,0.32419174,68238.0,68237.0,0.3079594]
[1729389937353,0.0002,68238.0,68237.0,0.41963212]
[1729389939355,0.0002,68238.0,68237.0,0.41963091]
[1729389940652,0.391345,68243.0,68237.0,0.35368191]
[1729389940853,0.391345,68243.0,68242.0,0.05863827]
[1729389941255,0.391345,68243.0,68242.0,0.27897514]
[1729389941865,0.030545,68243.0,68242.0,0.27897514]
[1729389944055,0.030545,68243.0,68242.0,0.22033687]
[1729389944462,0.16396873,68243.0,68241.0,0.12487447]
[1729389944690,0.13362373,68242.0,68241.0,0.065945]
[1729389945165,0.13362373,68242.0,68241.0,0.28618777]
[1729389945560,0.44186516,68242.0,68241.0,0.28618777]
[1729389947759,0.08106516,68242.0,68241.0,0.28618777]
[1729389949474,0.08106448,68242.0,68241.0,0.28618777]
[1729389950776,0.44186448,68242.0,68241.0,0.28618777]
[1729389951467,0.08106448,68242.0,68241.0,0.28618777]
[1729389952061,0.44186448,68242.0,68241.0,0.28618777]
[1729389952472,0.361,68242.0,68241.0,0.28618777]
[1729389953271,0.426945,68242.0,68241.0,0.22024277]
[1729389953470,0.065947,68239.0,68237.0,0.10047964]
[1729389953672,0.096248,68238.0,68237.0,0.10047964]
[1729389953868,0.126448,68238.0,68237.0,0.0271818]
[1729389965072,0.126448,68238.0,68237.0,0.10280519]
[1729389965276,0.126448,68238.0,68237.0,0.0002]
[1729389967381,0.20732704,68238.0,68237.0,0.00011875]
[1729389967567,0.126448,68238.0,68237.0,0.00011875]
[1729389967773,0.20732735,68238.0,68237.0,0.00011875]
[1729389971784,0.23423356,68238.0,68237.0,0.00011875]
[1729389972572,0.23423259,68238.0,68237.0,0.00011875]
[1729389974488,0.15335421,68238.0,68237.0,0.00011875]
[1729389976193,0.126448,68238.0,68237.0,0.00011875]
[1729389982587,0.065951,68235.0,68234.0,0.0002]
[1729389982789,0.50762819,68235.0,68234.0,0.0002]